[Event "Titled Tuesday Blitz June 20 Late 2023"]
[White "jasardo"]
[Black "KorolDimitriy75"]
[WhiteElo "2761"]
[BlackElo "2426"]
[Result "1-0"]
[Round "1"]
[TimeControl "180+2"]
[Date "2023.06.20"]
[WhiteClock "0:00:43"]
[BlackClock "0:00:00"]
[Board "71"]

1. d4 {[%clk 0:02:55]}  Nf6 {[%clk 0:02:59]} 2. c4 {[%clk 0:02:54]}  c5 {[%clk 0:02:58]} 3. d5 {[%clk 0:02:53]}  b5 {[%clk 0:02:58]} 4. cxb5 {[%clk 0:02:52]}  a6 {[%clk 0:02:58]} 5. b6 {[%clk 0:02:50]}  d6 {[%clk 0:02:58]} 6. Nc3 {[%clk 0:02:50]}  Nbd7 {[%clk 0:02:58]} 7. e4 {[%clk 0:02:49]}  g6 {[%clk 0:02:58]} 8. Nf3 {[%clk 0:02:50]}  Bg7 {[%clk 0:02:58]} 9. Be2 {[%clk 0:02:50]}  O-O {[%clk 0:02:58]} 10. O-O {[%clk 0:02:50]}  Nxb6 {[%clk 0:02:58]} 11. Re1 {[%clk 0:02:50]}  e6 {[%clk 0:02:58]} 12. dxe6 {[%clk 0:02:47]}  Bxe6 {[%clk 0:02:59]} 13. Bf4 {[%clk 0:02:47]}  d5 {[%clk 0:02:58]} 14. exd5 {[%clk 0:02:42]}  Nfxd5 {[%clk 0:02:59]} 15. Be5 {[%clk 0:02:41]}  Nxc3 {[%clk 0:02:53]} 16. bxc3 {[%clk 0:02:40]}  Bxe5 {[%clk 0:02:48]} 17. Nxe5 {[%clk 0:02:39]}  Qf6 {[%clk 0:02:46]} 18. Bf3 {[%clk 0:02:37]}  Rad8 {[%clk 0:02:39]} 19. Qc2 {[%clk 0:02:30]}  Bd5 {[%clk 0:01:58]} 20. Rab1 {[%clk 0:02:16]}  Bxf3 {[%clk 0:01:54]} 21. Nxf3 {[%clk 0:02:14]}  Nd5 {[%clk 0:01:53]} 22. Rb3 {[%clk 0:02:07]}  c4 {[%clk 0:01:42]} 23. Ra3 {[%clk 0:02:04]}  Nf4 {[%clk 0:01:42]} 24. Nd4 {[%clk 0:01:55]}  Nd3 {[%clk 0:01:40]} 25. Rf1 {[%clk 0:01:54]}  Rfe8 {[%clk 0:01:27]} 26. Ra4 {[%clk 0:01:46]}  Rc8 {[%clk 0:01:11]} 27. Qd2 {[%clk 0:01:42]}  Rc5 {[%clk 0:01:04]} 28. f4 {[%clk 0:01:38]}  Kg7 {[%clk 0:00:56]} 29. f5 {[%clk 0:01:18]}  g5 {[%clk 0:00:54]} 30. g3 {[%clk 0:01:15]}  Re4 {[%clk 0:00:43]} 31. Qg2 {[%clk 0:01:13]}  Ree5 {[%clk 0:00:20]} 32. Qd2 {[%clk 0:01:08]}  h6 {[%clk 0:00:19]} 33. Qg2 {[%clk 0:01:05]}  Red5 {[%clk 0:00:17]} 34. Qe4 {[%clk 0:01:00]}  Re5 {[%clk 0:00:16]} 35. Qb7 {[%clk 0:00:59]}  Kg8 {[%clk 0:00:13]} 36. Rxa6 {[%clk 0:00:58]}  Qe7 {[%clk 0:00:12]} 37. Qxe7 {[%clk 0:00:55]}  Rxe7 {[%clk 0:00:13]} 38. Rxh6 {[%clk 0:00:54]}  Ra7 {[%clk 0:00:10]} 39. f6 {[%clk 0:00:44]}  Rxa2 {[%clk 0:00:09]} 40. Nf5 {[%clk 0:00:43]}  Rxf5 {[%clk 0:00:03]} 41. Rxf5 {[%clk 0:00:44]}  Ra1+ {[%clk 0:00:03]} 42. Rf1 {[%clk 0:00:43]}  Ra2 {[%clk 0:00:04]} 43. Rh5 {[%clk 0:00:43]}  g4 {[%clk 0:00:02]} 44. Rg5+ {[%clk 0:00:43]}  Kf8 {[%clk 0:00:02]} 45. Rxg4 {[%clk 0:00:44]}  Rc2 {[%clk 0:00:00]} 46. Rxc4 {[%clk 0:00:43]} 1-0


[Site "https://www.chess.com"]

[Event "Titled Tuesday Blitz June 20 Late 2023"]
[White "Mahdavi, Reza"]
[Black "FuenfgegenWilly"]
[WhiteFideId "12595926"]
[WhiteElo "2395"]
[BlackElo "2421"]
[Result "1-0"]
[Round "1"]
[TimeControl "180+2"]
[Date "2023.06.20"]
[WhiteClock "0:00:20"]
[BlackClock "0:00:05"]
[Board "73"]

1. e4 {[%clk 0:02:55]}  e5 {[%clk 0:02:56]} 2. Nf3 {[%clk 0:02:55]}  Nc6 {[%clk 0:02:53]} 3. Bc4 {[%clk 0:02:45]}  Nf6 {[%clk 0:02:50]} 4. d3 {[%clk 0:02:43]}  d5 {[%clk 0:02:50]} 5. exd5 {[%clk 0:02:41]}  Nxd5 {[%clk 0:02:51]} 6. O-O {[%clk 0:02:42]}  Bc5 {[%clk 0:02:50]} 7. Re1 {[%clk 0:02:36]}  O-O {[%clk 0:02:50]} 8. c3 {[%clk 0:02:12]}  Bg4 {[%clk 0:02:47]} 9. h3 {[%clk 0:02:11]}  Bh5 {[%clk 0:02:47]} 10. Nbd2 {[%clk 0:02:06]}  Nb6 {[%clk 0:02:41]} 11. Ne4 {[%clk 0:02:01]}  Be7 {[%clk 0:02:41]} 12. Bb3 {[%clk 0:02:00]}  Kh8 {[%clk 0:02:35]} 13. Ng3 {[%clk 0:02:00]}  Bg6 {[%clk 0:02:34]} 14. Bc2 {[%clk 0:01:58]}  Bd6 {[%clk 0:02:18]} 15. Bg5 {[%clk 0:01:52]}  f6 {[%clk 0:02:19]} 16. Be3 {[%clk 0:01:52]}  f5 {[%clk 0:02:17]} 17. Bg5 {[%clk 0:01:49]}  Qd7 {[%clk 0:02:14]} 18. Nh4 {[%clk 0:01:45]}  Qf7 {[%clk 0:01:45]} 19. Bb3 {[%clk 0:01:42]}  Qe8 {[%clk 0:01:43]} 20. Qf3 {[%clk 0:01:34]}  f4 {[%clk 0:01:34]} 21. Nxg6+ {[%clk 0:01:30]}  Qxg6 {[%clk 0:01:33]} 22. Ne4 {[%clk 0:01:31]}  Rf5 {[%clk 0:01:24]} 23. h4 {[%clk 0:00:57]}  h6 {[%clk 0:01:24]} 24. h5 {[%clk 0:00:55]}  Qe8 {[%clk 0:01:24]} 25. g4 {[%clk 0:00:54]}  Rxg5 {[%clk 0:01:05]} 26. Nxg5 {[%clk 0:00:53]}  hxg5 {[%clk 0:01:06]} 27. d4 {[%clk 0:00:52]}  a5 {[%clk 0:01:03]} 28. Bc2 {[%clk 0:00:52]}  Qg8 {[%clk 0:00:51]} 29. Rad1 {[%clk 0:00:43]}  exd4 {[%clk 0:00:45]} 30. cxd4 {[%clk 0:00:40]}  Nb4 {[%clk 0:00:45]} 31. Bg6 {[%clk 0:00:40]}  N6d5 {[%clk 0:00:41]} 32. Re2 {[%clk 0:00:40]}  c6 {[%clk 0:00:34]} 33. a3 {[%clk 0:00:40]}  Na6 {[%clk 0:00:33]} 34. Rde1 {[%clk 0:00:40]}  Nf6 {[%clk 0:00:34]} 35. Bb1 {[%clk 0:00:32]}  Nc7 {[%clk 0:00:32]} 36. Kg2 {[%clk 0:00:30]}  Ncd5 {[%clk 0:00:32]} 37. Kh3 {[%clk 0:00:30]}  a4 {[%clk 0:00:23]} 38. Re6 {[%clk 0:00:30]}  Bc7 {[%clk 0:00:22]} 39. Bg6 {[%clk 0:00:22]}  Bb6 {[%clk 0:00:16]} 40. R6e5 {[%clk 0:00:19]}  Bxd4 {[%clk 0:00:15]} 41. Rxg5 {[%clk 0:00:19]}  Rd8 {[%clk 0:00:13]} 42. Rf5 {[%clk 0:00:19]}  Qf8 {[%clk 0:00:08]} 43. g5 {[%clk 0:00:19]}  Qd6 {[%clk 0:00:07]} 44. gxf6 {[%clk 0:00:19]}  Nxf6 {[%clk 0:00:08]} 45. Qxf4 {[%clk 0:00:18]}  Qxf4 {[%clk 0:00:08]} 46. Rxf4 {[%clk 0:00:19]}  Bxb2 {[%clk 0:00:08]} 47. Rxa4 {[%clk 0:00:19]}  Rd2 {[%clk 0:00:05]} 48. Ra8+ {[%clk 0:00:18]}  Ng8 {[%clk 0:00:05]} 49. Rxg8+ {[%clk 0:00:19]}  Kxg8 {[%clk 0:00:05]} 50. Re8# {[%clk 0:00:20]} 1-0


[Site "https://www.chess.com"]

[Event "Titled Tuesday Blitz June 20 Late 2023"]
[White "Yuan, Qingyu"]
[Black "Kovalevsky, Stanislav"]
[WhiteFideId "8609772"]
[BlackFideId "13508598"]
[WhiteElo "2359"]
[BlackElo "2112"]
[Result "1-0"]
[Round "1"]
[TimeControl "180+2"]
[Date "2023.06.20"]
[WhiteClock "0:01:24"]
[BlackClock "0:00:03"]
[Board "77"]

1. e4 {[%clk 0:03:00]}  e6 {[%clk 0:02:56]} 2. d4 {[%clk 0:02:58]}  d5 {[%clk 0:02:56]} 3. Nd2 {[%clk 0:02:59]}  dxe4 {[%clk 0:02:57]} 4. Nxe4 {[%clk 0:03:00]}  Nf6 {[%clk 0:02:58]} 5. Nxf6+ {[%clk 0:02:58]}  gxf6 {[%clk 0:02:58]} 6. Nf3 {[%clk 0:02:54]}  Nc6 {[%clk 0:02:57]} 7. g3 {[%clk 0:02:50]}  Ne7 {[%clk 0:02:50]} 8. Bg2 {[%clk 0:02:48]}  Bd7 {[%clk 0:02:50]} 9. Qe2 {[%clk 0:02:39]}  Bc6 {[%clk 0:02:49]} 10. Bf4 {[%clk 0:02:26]}  Nf5 {[%clk 0:02:13]} 11. O-O-O {[%clk 0:02:18]}  Qe7 {[%clk 0:01:55]} 12. Kb1 {[%clk 0:02:04]}  O-O-O {[%clk 0:01:53]} 13. c3 {[%clk 0:02:00]}  Bh6 {[%clk 0:01:47]} 14. Bxh6 {[%clk 0:01:55]}  Nxh6 {[%clk 0:01:48]} 15. Nh4 {[%clk 0:01:54]}  Qd6 {[%clk 0:01:35]} 16. Bxc6 {[%clk 0:01:43]}  Qxc6 {[%clk 0:01:34]} 17. Qh5 {[%clk 0:01:44]}  Qe4+ {[%clk 0:00:54]} 18. Ka1 {[%clk 0:01:44]}  e5 {[%clk 0:00:12]} 19. Rhe1 {[%clk 0:01:25]}  Qg4 {[%clk 0:00:06]} 20. Qxh6 {[%clk 0:01:25]}  e4 {[%clk 0:00:06]} 21. Qxf6 {[%clk 0:01:22]}  Rhe8 {[%clk 0:00:06]} 22. Qf5+ {[%clk 0:01:22]}  Qxf5 {[%clk 0:00:06]} 23. Nxf5 {[%clk 0:01:23]}  Rd5 {[%clk 0:00:07]} 24. Ne3 {[%clk 0:01:23]}  Rh5 {[%clk 0:00:07]} 25. h4 {[%clk 0:01:22]}  f5 {[%clk 0:00:08]} 26. Ng2 {[%clk 0:01:23]}  Rh6 {[%clk 0:00:05]} 27. Nf4 {[%clk 0:01:24]}  a5 {[%clk 0:00:05]} 28. Kb1 {[%clk 0:01:23]}  b5 {[%clk 0:00:05]} 29. Kc2 {[%clk 0:01:24]}  Kd7 {[%clk 0:00:05]} 30. Re3 {[%clk 0:01:24]}  Kd6 {[%clk 0:00:06]} 31. f3 {[%clk 0:01:24]}  Re7 {[%clk 0:00:03]} 32. Rde1 {[%clk 0:01:23]}  Rf6 {[%clk 0:00:01]} 33. fxe4 {[%clk 0:01:23]}  fxe4 {[%clk 0:00:02]} 34. Rxe4 {[%clk 0:01:24]}  Rxe4 {[%clk 0:00:02]} 35. Rxe4 {[%clk 0:01:25]}  Rg6 {[%clk 0:00:03]} 36. Nxg6 {[%clk 0:01:24]}  h6 {[%clk 0:00:03]} 1-0


[Site "https://www.chess.com"]

[Event "Titled Tuesday Blitz June 20 Late 2023"]
[White "Fernandez Guillen, Ernesto J."]
[Black "Jonkman, Harmen"]
[WhiteFideId "3512428"]
[BlackFideId "1002708"]
[WhiteElo "2434"]
[BlackElo "2368"]
[Result "0-1"]
[Round "1"]
[TimeControl "180+2"]
[Date "2023.06.20"]
[WhiteClock "0:00:22"]
[BlackClock "0:00:15"]
[Board "79"]

1. e4 {[%clk 0:02:59]}  e5 {[%clk 0:02:59]} 2. Nf3 {[%clk 0:02:59]}  Nc6 {[%clk 0:02:59]} 3. d4 {[%clk 0:02:52]}  exd4 {[%clk 0:02:56]} 4. Bc4 {[%clk 0:02:49]}  Nf6 {[%clk 0:02:55]} 5. O-O {[%clk 0:02:46]}  Nxe4 {[%clk 0:02:54]} 6. Re1 {[%clk 0:02:45]}  d5 {[%clk 0:02:54]} 7. Bxd5 {[%clk 0:02:45]}  Qxd5 {[%clk 0:02:54]} 8. Nc3 {[%clk 0:02:46]}  Qa5 {[%clk 0:02:53]} 9. Nxe4 {[%clk 0:02:47]}  Be6 {[%clk 0:02:53]} 10. Bd2 {[%clk 0:02:48]}  Qf5 {[%clk 0:02:45]} 11. Bg5 {[%clk 0:02:47]}  Bd6 {[%clk 0:02:34]} 12. Nxd4 {[%clk 0:02:22]}  Nxd4 {[%clk 0:02:30]} 13. Qxd4 {[%clk 0:02:23]}  O-O {[%clk 0:02:26]} 14. Nxd6 {[%clk 0:02:23]}  Qxg5 {[%clk 0:02:22]} 15. Ne4 {[%clk 0:02:23]}  Qb5 {[%clk 0:02:20]} 16. Nc5 {[%clk 0:02:20]}  Rfd8 {[%clk 0:02:18]} 17. Qc3 {[%clk 0:02:20]}  Bd5 {[%clk 0:02:12]} 18. Rad1 {[%clk 0:02:14]}  Qc6 {[%clk 0:02:03]} 19. Rd3 {[%clk 0:01:51]}  Rd6 {[%clk 0:01:52]} 20. Rg3 {[%clk 0:01:50]}  Rg6 {[%clk 0:01:51]} 21. f3 {[%clk 0:01:42]}  Rxg3 {[%clk 0:01:45]} 22. hxg3 {[%clk 0:01:43]}  h6 {[%clk 0:01:45]} 23. Kf2 {[%clk 0:01:22]}  b6 {[%clk 0:01:38]} 24. Nb3 {[%clk 0:01:04]}  Qxc3 {[%clk 0:01:37]} 25. bxc3 {[%clk 0:01:05]}  Be6 {[%clk 0:01:32]} 26. a3 {[%clk 0:01:03]}  Rd8 {[%clk 0:01:30]} 27. Ke3 {[%clk 0:01:04]}  c5 {[%clk 0:01:26]} 28. Re2 {[%clk 0:01:04]}  Kf8 {[%clk 0:01:25]} 29. Rd2 {[%clk 0:01:03]}  Rxd2 {[%clk 0:01:24]} 30. Kxd2 {[%clk 0:01:04]}  Ke7 {[%clk 0:01:24]} 31. Ke3 {[%clk 0:01:04]}  g5 {[%clk 0:01:22]} 32. g4 {[%clk 0:01:03]}  Kd6 {[%clk 0:01:21]} 33. Nd2 {[%clk 0:01:02]}  Ke5 {[%clk 0:01:17]} 34. g3 {[%clk 0:01:01]}  f5 {[%clk 0:01:15]} 35. gxf5 {[%clk 0:00:52]}  Bxf5 {[%clk 0:01:15]} 36. f4+ {[%clk 0:00:34]}  gxf4+ {[%clk 0:01:13]} 37. gxf4+ {[%clk 0:00:35]}  Kd5 {[%clk 0:01:11]} 38. c4+ {[%clk 0:00:35]}  Ke6 {[%clk 0:01:06]} 39. c3 {[%clk 0:00:36]}  Bg4 {[%clk 0:01:01]} 40. Ke4 {[%clk 0:00:36]}  h5 {[%clk 0:00:59]} 41. Nf1 {[%clk 0:00:32]}  Bf5+ {[%clk 0:00:56]} 42. Kf3 {[%clk 0:00:31]}  Bd3 {[%clk 0:00:48]} 43. Ne3 {[%clk 0:00:31]}  Kf6 {[%clk 0:00:48]} 44. Kg3 {[%clk 0:00:32]}  Be2 {[%clk 0:00:41]} 45. Kh4 {[%clk 0:00:31]}  Kg6 {[%clk 0:00:42]} 46. Kg3 {[%clk 0:00:28]}  Kf6 {[%clk 0:00:39]} 47. Kf2 {[%clk 0:00:28]}  Bd3 {[%clk 0:00:38]} 48. Kf3 {[%clk 0:00:28]}  Bf5 {[%clk 0:00:35]} 49. Kg3 {[%clk 0:00:28]}  Bd3 {[%clk 0:00:34]} 50. Kh2 {[%clk 0:00:23]}  Ke6 {[%clk 0:00:29]} 51. Kh3 {[%clk 0:00:23]}  Kf6 {[%clk 0:00:28]} 52. Kh4 {[%clk 0:00:24]}  Be2 {[%clk 0:00:28]} 53. Nd5+ {[%clk 0:00:21]}  Kf5 {[%clk 0:00:27]} 54. Ne7+ {[%clk 0:00:21]}  Kxf4 {[%clk 0:00:26]} 55. Nc6 {[%clk 0:00:22]}  Bxc4 {[%clk 0:00:22]} 56. Nxa7 {[%clk 0:00:22]}  Be6 {[%clk 0:00:20]} 57. Kxh5 {[%clk 0:00:21]}  Ke3 {[%clk 0:00:19]} 58. Kg6 {[%clk 0:00:22]}  Kd3 {[%clk 0:00:19]} 59. Kf6 {[%clk 0:00:23]}  Bg4 {[%clk 0:00:19]} 60. Nb5 {[%clk 0:00:23]}  Kc4 {[%clk 0:00:18]} 61. a4 {[%clk 0:00:23]}  Bd7 {[%clk 0:00:17]} 62. Nd6+ {[%clk 0:00:23]}  Kxc3 {[%clk 0:00:17]} 63. a5 {[%clk 0:00:23]}  bxa5 {[%clk 0:00:17]} 64. Ke5 {[%clk 0:00:24]}  Bc6 {[%clk 0:00:15]} 65. Ne4+ {[%clk 0:00:25]}  Bxe4 {[%clk 0:00:15]} 66. Kxe4 {[%clk 0:00:22]}  a4 {[%clk 0:00:15]} 0-1


[Site "https://www.chess.com"]

[Event "Titled Tuesday Blitz June 20 Late 2023"]
[White "i_like_explosions"]
[Black "Veiga, Jose Francisco R P Neves"]
[BlackFideId "1930087"]
[WhiteElo "2416"]
[BlackElo "2319"]
[Result "0-1"]
[Round "1"]
[TimeControl "180+2"]
[Date "2023.06.20"]
[WhiteClock "0:00:02"]
[BlackClock "0:00:04"]
[Board "82"]

1. d4 {[%clk 0:03:00]}  Nf6 {[%clk 0:02:59]} 2. Bg5 {[%clk 0:03:01]}  d5 {[%clk 0:02:58]} 3. Bxf6 {[%clk 0:03:01]}  exf6 {[%clk 0:02:59]} 4. e3 {[%clk 0:03:02]}  c6 {[%clk 0:02:54]} 5. c4 {[%clk 0:03:02]}  dxc4 {[%clk 0:02:54]} 6. Bxc4 {[%clk 0:03:03]}  Bd6 {[%clk 0:02:53]} 7. Nc3 {[%clk 0:03:03]}  Nd7 {[%clk 0:02:53]} 8. Nf3 {[%clk 0:03:02]}  Nb6 {[%clk 0:02:53]} 9. Bb3 {[%clk 0:03:02]}  O-O {[%clk 0:02:53]} 10. O-O {[%clk 0:03:01]}  Qe7 {[%clk 0:02:53]} 11. Qc2 {[%clk 0:02:58]}  Bg4 {[%clk 0:02:50]} 12. Nd2 {[%clk 0:02:57]}  Bh5 {[%clk 0:02:49]} 13. Nc4 {[%clk 0:02:55]}  Nxc4 {[%clk 0:02:46]} 14. Bxc4 {[%clk 0:02:56]}  Bg6 {[%clk 0:02:44]} 15. Bd3 {[%clk 0:02:53]}  Rad8 {[%clk 0:02:42]} 16. a3 {[%clk 0:02:51]}  Bb8 {[%clk 0:02:42]} 17. Rfe1 {[%clk 0:02:47]}  Rfe8 {[%clk 0:02:41]} 18. Bxg6 {[%clk 0:02:46]}  hxg6 {[%clk 0:02:41]} 19. Rad1 {[%clk 0:02:45]}  f5 {[%clk 0:02:38]} 20. b4 {[%clk 0:02:36]}  f4 {[%clk 0:02:35]} 21. e4 {[%clk 0:02:34]}  f3 {[%clk 0:02:30]} 22. g3 {[%clk 0:02:28]}  g5 {[%clk 0:02:19]} 23. e5 {[%clk 0:02:17]}  Qe6 {[%clk 0:02:14]} 24. Qe4 {[%clk 0:02:00]}  g4 {[%clk 0:02:04]} 25. h3 {[%clk 0:01:52]}  Qc4 {[%clk 0:01:44]} 26. Re3 {[%clk 0:01:45]}  gxh3 {[%clk 0:01:32]} 27. Rdd3 {[%clk 0:01:12]}  Qb3 {[%clk 0:01:07]} 28. Qxf3 {[%clk 0:01:04]}  Qxa3 {[%clk 0:01:05]} 29. Ne4 {[%clk 0:01:03]}  Qxb4 {[%clk 0:00:54]} 30. Qg4 {[%clk 0:01:02]}  Re6 {[%clk 0:00:31]} 31. Ng5 {[%clk 0:00:46]}  Rh6 {[%clk 0:00:26]} 32. Kh2 {[%clk 0:00:38]}  Qe7 {[%clk 0:00:24]} 33. Rf3 {[%clk 0:00:35]}  Rf8 {[%clk 0:00:22]} 34. Ne4 {[%clk 0:00:31]}  Kh8 {[%clk 0:00:19]} 35. Rf5 {[%clk 0:00:29]}  a5 {[%clk 0:00:19]} 36. Rh5 {[%clk 0:00:26]}  Qe6 {[%clk 0:00:19]} 37. Rf5 {[%clk 0:00:20]}  Qg6 {[%clk 0:00:19]} 38. Rg5 {[%clk 0:00:18]}  Qh7 {[%clk 0:00:18]} 39. Rf3 {[%clk 0:00:18]}  Bc7 {[%clk 0:00:18]} 40. Rgf5 {[%clk 0:00:16]}  Qg6 {[%clk 0:00:15]} 41. Rg5 {[%clk 0:00:14]}  Qe6 {[%clk 0:00:14]} 42. Rgf5 {[%clk 0:00:12]}  Kg8 {[%clk 0:00:13]} 43. Ng5 {[%clk 0:00:12]}  Qg6 {[%clk 0:00:13]} 44. Qf4 {[%clk 0:00:13]}  f6 {[%clk 0:00:11]} 45. Ne6 {[%clk 0:00:11]}  Rf7 {[%clk 0:00:08]} 46. Nxc7 {[%clk 0:00:09]}  Rxc7 {[%clk 0:00:09]} 47. exf6 {[%clk 0:00:10]}  Rf7 {[%clk 0:00:09]} 48. Qb8+ {[%clk 0:00:09]}  Kh7 {[%clk 0:00:09]} 49. Qe5 {[%clk 0:00:04]}  gxf6 {[%clk 0:00:09]} 50. Qxa5 {[%clk 0:00:04]}  Qg4 {[%clk 0:00:05]} 51. Qd8 {[%clk 0:00:04]}  Qe4 {[%clk 0:00:04]} 52. Qe8 {[%clk 0:00:02]}  Qxe8 {[%clk 0:00:04]} 0-1


[Site "https://www.chess.com"]

[Event "Titled Tuesday Blitz June 20 Late 2023"]
[White "Velikanov, Alexander"]
[Black "Chabris, Christopher"]
[WhiteFideId "2039290"]
[BlackFideId "2005263"]
[WhiteElo "2259"]
[BlackElo "2416"]
[Result "1-0"]
[Round "1"]
[TimeControl "180+2"]
[Date "2023.06.20"]
[WhiteClock "0:00:25"]
[BlackClock "0:00:00"]
[Board "83"]

1. d4 {[%clk 0:02:59]}  Nf6 {[%clk 0:02:59]} 2. Nf3 {[%clk 0:02:58]}  e6 {[%clk 0:02:59]} 3. Bg5 {[%clk 0:02:57]}  h6 {[%clk 0:02:58]} 4. Bxf6 {[%clk 0:02:54]}  Qxf6 {[%clk 0:02:57]} 5. e4 {[%clk 0:02:54]}  d6 {[%clk 0:02:56]} 6. Nbd2 {[%clk 0:02:31]}  Nd7 {[%clk 0:02:48]} 7. Bd3 {[%clk 0:02:30]}  g6 {[%clk 0:02:41]} 8. O-O {[%clk 0:02:29]}  Bg7 {[%clk 0:02:41]} 9. c3 {[%clk 0:02:29]}  O-O {[%clk 0:02:40]} 10. a4 {[%clk 0:02:29]}  Qe7 {[%clk 0:02:30]} 11. Re1 {[%clk 0:02:24]}  c5 {[%clk 0:02:23]} 12. a5 {[%clk 0:02:14]}  Rb8 {[%clk 0:02:13]} 13. Nc4 {[%clk 0:02:03]}  b5 {[%clk 0:01:49]} 14. axb6 {[%clk 0:02:00]}  Nxb6 {[%clk 0:01:46]} 15. Na5 {[%clk 0:01:59]}  Bd7 {[%clk 0:01:44]} 16. dxc5 {[%clk 0:01:51]}  dxc5 {[%clk 0:01:43]} 17. e5 {[%clk 0:01:51]}  Rfc8 {[%clk 0:01:32]} 18. Qe2 {[%clk 0:01:40]}  Nd5 {[%clk 0:01:13]} 19. Qc2 {[%clk 0:01:24]}  Be8 {[%clk 0:01:02]} 20. Be4 {[%clk 0:01:18]}  Rd8 {[%clk 0:00:55]} 21. Nc4 {[%clk 0:01:16]}  Nb6 {[%clk 0:00:50]} 22. Nd6 {[%clk 0:01:15]}  Rxd6 {[%clk 0:00:31]} 23. exd6 {[%clk 0:01:13]}  Qxd6 {[%clk 0:00:31]} 24. Rxa7 {[%clk 0:01:10]}  Nc4 {[%clk 0:00:31]} 25. b3 {[%clk 0:01:08]}  Qb6 {[%clk 0:00:28]} 26. Ra8 {[%clk 0:00:54]}  Rxa8 {[%clk 0:00:22]} 27. Bxa8 {[%clk 0:00:55]}  Nd6 {[%clk 0:00:20]} 28. Rd1 {[%clk 0:00:48]}  Nf5 {[%clk 0:00:20]} 29. Be4 {[%clk 0:00:47]}  Bf6 {[%clk 0:00:18]} 30. h3 {[%clk 0:00:45]}  Kg7 {[%clk 0:00:19]} 31. Nd2 {[%clk 0:00:32]}  Nd6 {[%clk 0:00:18]} 32. Bd3 {[%clk 0:00:29]}  Bc6 {[%clk 0:00:17]} 33. Ne4 {[%clk 0:00:25]}  Nxe4 {[%clk 0:00:16]} 34. Bxe4 {[%clk 0:00:26]}  Bxe4 {[%clk 0:00:15]} 35. Qxe4 {[%clk 0:00:27]}  Qxb3 {[%clk 0:00:16]} 36. Rd7 {[%clk 0:00:28]}  e5 {[%clk 0:00:14]} 37. c4 {[%clk 0:00:26]}  Qc3 {[%clk 0:00:12]} 38. Qd5 {[%clk 0:00:25]}  Qe1+ {[%clk 0:00:00]} 39. Kh2 {[%clk 0:00:25]} 1-0


[Site "https://www.chess.com"]

[Event "Titled Tuesday Blitz June 20 Late 2023"]
[White "Carrasco Miranda, Andres"]
[Black "carokannlover213"]
[WhiteFideId "3405990"]
[WhiteElo "2183"]
[BlackElo "2722"]
[Result "1-0"]
[Round "1"]
[TimeControl "180+2"]
[Date "2023.06.20"]
[WhiteClock "0:00:43"]
[BlackClock "0:00:26"]
[Board "84"]

1. d4 {[%clk 0:02:10]}  e6 {[%clk 0:03:00]} 2. c4 {[%clk 0:02:09]}  b6 {[%clk 0:03:00]} 3. a3 {[%clk 0:02:06]}  Bb7 {[%clk 0:03:01]} 4. d5 {[%clk 0:02:06]}  Nf6 {[%clk 0:03:00]} 5. Nc3 {[%clk 0:02:06]}  exd5 {[%clk 0:03:00]} 6. cxd5 {[%clk 0:02:07]}  Be7 {[%clk 0:02:58]} 7. g3 {[%clk 0:02:07]}  O-O {[%clk 0:02:58]} 8. Bg2 {[%clk 0:02:07]}  d6 {[%clk 0:02:59]} 9. Nf3 {[%clk 0:02:04]}  Nbd7 {[%clk 0:02:59]} 10. O-O {[%clk 0:02:04]}  Ne5 {[%clk 0:02:59]} 11. Nxe5 {[%clk 0:01:57]}  dxe5 {[%clk 0:02:59]} 12. d6 {[%clk 0:01:58]}  e4 {[%clk 0:02:29]} 13. dxe7 {[%clk 0:01:55]}  Qxe7 {[%clk 0:02:30]} 14. Bg5 {[%clk 0:01:54]}  h6 {[%clk 0:02:30]} 15. Bxf6 {[%clk 0:01:52]}  Qxf6 {[%clk 0:02:31]} 16. Bxe4 {[%clk 0:01:51]}  c6 {[%clk 0:02:31]} 17. Bf3 {[%clk 0:01:49]}  Rad8 {[%clk 0:02:31]} 18. Qc1 {[%clk 0:01:47]}  Ba6 {[%clk 0:02:31]} 19. Rd1 {[%clk 0:01:43]}  Rde8 {[%clk 0:02:31]} 20. Qf4 {[%clk 0:01:40]}  Qe7 {[%clk 0:02:30]} 21. Bxc6 {[%clk 0:01:37]}  Rc8 {[%clk 0:02:31]} 22. Bf3 {[%clk 0:01:33]}  Rc4 {[%clk 0:02:28]} 23. Qd6 {[%clk 0:01:30]}  Qg5 {[%clk 0:02:26]} 24. Ne4 {[%clk 0:01:22]}  Qa5 {[%clk 0:02:26]} 25. b4 {[%clk 0:01:15]}  Qa4 {[%clk 0:02:25]} 26. Qe7 {[%clk 0:01:07]}  Rc2 {[%clk 0:02:25]} 27. Rd8 {[%clk 0:01:05]}  Rc8 {[%clk 0:02:20]} 28. Rad1 {[%clk 0:01:00]}  Rfxd8 {[%clk 0:02:08]} 29. Rxd8+ {[%clk 0:01:01]}  Rxd8 {[%clk 0:02:09]} 30. Qxd8+ {[%clk 0:01:00]}  Kh7 {[%clk 0:02:10]} 31. Qe7 {[%clk 0:00:50]}  Bc4 {[%clk 0:02:04]} 32. Nd6 {[%clk 0:00:46]}  Qd1+ {[%clk 0:01:43]} 33. Kg2 {[%clk 0:00:46]}  Bd5 {[%clk 0:01:44]} 34. Bxd5 {[%clk 0:00:43]}  Qxd5+ {[%clk 0:01:45]} 35. Qe4+ {[%clk 0:00:43]}  Qxe4+ {[%clk 0:01:46]} 36. Nxe4 {[%clk 0:00:44]}  Kg6 {[%clk 0:01:46]} 37. Kf3 {[%clk 0:00:44]}  Kf5 {[%clk 0:01:46]} 38. Nd6+ {[%clk 0:00:43]}  Ke6 {[%clk 0:01:46]} 39. Nc8 {[%clk 0:00:43]}  Kd5 {[%clk 0:01:47]} 40. Nxa7 {[%clk 0:00:43]}  Kc4 {[%clk 0:01:48]} 41. Nc8 {[%clk 0:00:43]}  b5 {[%clk 0:01:49]} 42. Nd6+ {[%clk 0:00:42]}  Kb3 {[%clk 0:01:50]} 43. Nxb5 {[%clk 0:00:43]}  Ka4 {[%clk 0:01:51]} 44. Nd6 {[%clk 0:00:43]}  Kxa3 {[%clk 0:01:52]} 45. Nxf7 {[%clk 0:00:43]}  Kxb4 {[%clk 0:01:52]} 46. Ke4 {[%clk 0:00:43]}  Kc5 {[%clk 0:01:53]} 47. Ke5 {[%clk 0:00:44]}  Kc4 {[%clk 0:01:53]} 48. Nh8 {[%clk 0:00:43]}  Kc3 {[%clk 0:01:54]} 49. Ke4 {[%clk 0:00:43]}  Kd2 {[%clk 0:01:55]} 50. Kf3 {[%clk 0:00:43]}  Kc3 {[%clk 0:01:55]} 51. Ng6 {[%clk 0:00:43]}  Kd4 {[%clk 0:01:56]} 52. Kf4 {[%clk 0:00:43]}  Kd5 {[%clk 0:01:56]} 53. Kf5 {[%clk 0:00:44]}  Kd6 {[%clk 0:01:56]} 54. Ne5 {[%clk 0:00:44]}  Ke7 {[%clk 0:01:57]} 55. Kg6 {[%clk 0:00:44]}  Kf8 {[%clk 0:01:58]} 56. Ng4 {[%clk 0:00:43]}  Kg8 {[%clk 0:01:59]} 57. Nxh6+ {[%clk 0:00:43]}  gxh6 {[%clk 0:02:00]} 58. Kxh6 {[%clk 0:00:44]}  Kf7 {[%clk 0:02:01]} 59. g4 {[%clk 0:00:43]}  Kf6 {[%clk 0:02:02]} 60. g5+ {[%clk 0:00:43]}  Kf7 {[%clk 0:02:03]} 61. Kh7 {[%clk 0:00:43]}  Kf8 {[%clk 0:02:03]} 62. g6 {[%clk 0:00:44]}  Ke7 {[%clk 0:02:03]} 63. g7 {[%clk 0:00:44]}  Kd6 {[%clk 0:02:04]} 64. g8=Q {[%clk 0:00:44]}  Kc5 {[%clk 0:02:05]} 65. Qg4 {[%clk 0:00:44]}  Kb5 {[%clk 0:01:34]} 66. Qd4 {[%clk 0:00:41]}  Ka5 {[%clk 0:01:35]} 67. Qb2 {[%clk 0:00:39]}  Ka4 {[%clk 0:01:26]} 68. Kg7 {[%clk 0:00:40]}  Ka5 {[%clk 0:01:27]} 69. Kf7 {[%clk 0:00:41]}  Ka4 {[%clk 0:01:28]} 70. Ke7 {[%clk 0:00:42]}  Ka5 {[%clk 0:01:29]} 71. Kd6 {[%clk 0:00:42]}  Ka4 {[%clk 0:01:30]} 72. Kc5 {[%clk 0:00:42]}  Ka5 {[%clk 0:00:26]} 73. Qb5# {[%clk 0:00:43]} 1-0


[Site "https://www.chess.com"]